bitfinex/quotes_BTCUSD_20260308
["timestamp","ask_amount","ask_price","bid_price","bid_amount"]
[1772943341713,0.26806211,66996.0,66968.0,0.00152]
[1772943341889,0.26806211,66995.0,66968.0,0.00152]
[1772943342237,0.03810863,66991.0,66968.0,0.1382671]
[1772943342449,0.07464023,66988.0,66969.0,0.07466141]
[1772943342651,0.03810863,66987.0,66969.0,0.07466141]
[1772943345122,0.07464246,66986.0,66969.0,0.07466141]
[1772943345305,0.03810863,66985.0,66969.0,0.07466141]
[1772943345504,0.03810863,66983.0,66969.0,0.07466141]
[1772943346744,0.03810863,66983.0,66969.0,0.21140851]
[1772943346924,0.03810863,66983.0,66970.0,0.16551815]
[1772943347125,0.03810863,66983.0,66970.0,0.1367471]
[1772943347443,0.11275555,66982.0,66971.0,0.07465918]
[1772943348228,0.11275555,66982.0,66971.0,0.07617918]
[1772943349108,0.11275555,66982.0,66971.0,0.07465918]
[1772943349266,0.11275555,66982.0,66971.0,0.07617918]
[1772943349464,0.07464692,66982.0,66971.0,0.07617918]
[1772943349657,0.03810863,66981.0,66971.0,0.07617918]
[1772943350466,0.03810863,66981.0,66971.0,0.07465918]
[1772943350670,0.03810863,66981.0,66971.0,0.07617918]
[1772943351309,0.07464914,66980.0,66971.0,0.07617918]
[1772943351509,0.07464914,66980.0,66971.0,0.07465918]
[1772943351716,0.07464914,66980.0,66971.0,0.07617918]
[1772943355552,0.07464897,66981.0,66971.0,0.07637918]
[1772943356325,0.11275555,66983.0,66971.0,0.07637918]
[1772943356538,0.11275555,66983.0,66972.0,0.00015]
[1772943356824,0.07464692,66983.0,66972.0,0.00015]
[1772943357134,0.03810863,66982.0,66972.0,0.00015]
[1772943357320,0.03810863,66982.0,66972.0,0.00167]
[1772943357832,0.11275666,66981.0,66972.0,0.00167]
[1772943358242,0.11275666,66981.0,66972.0,0.00015]
[1772943358462,0.11275666,66981.0,66972.0,0.00167]
[1772943361216,0.11275666,66981.0,66973.0,0.07465695]
[1772943362056,0.11275666,66981.0,66972.0,0.00167]
[1772943362649,0.11275666,66981.0,66972.0,0.07632793]
[1772943366122,0.07464803,66981.0,66972.0,0.07632793]
[1772943366337,0.03546159,66980.0,66972.0,0.07632793]
[1772943367638,0.03546159,66980.0,66968.0,0.07466252]
[1772943368226,0.03546159,66978.0,66968.0,0.07466252]
[1772943370262,0.10854863,66977.0,66968.0,0.07466252]
[1772943371168,0.14863502,66976.0,66968.0,0.07466252]
[1772943371399,0.14863502,66975.0,66968.0,0.07466252]
[1772943371576,0.14863502,66974.0,66968.0,0.07466252]
[1772943371776,0.14863502,66976.0,66968.0,0.07466252]
[1772943371997,0.18253116,66975.0,66968.0,0.07466252]
[1772943372196,0.14863502,66974.0,66968.0,0.07466252]
[1772943372610,0.10855165,66975.0,66968.0,0.07466252]
[1772943372782,0.25718667,66975.0,66968.0,0.07466252]
[1772943372975,0.10855165,66975.0,66968.0,0.07466252]
[1772943373182,0.25718667,66975.0,66968.0,0.07466252]
[1772943373384,0.10855165,66975.0,66968.0,0.07466252]
[1772943373685,0.25718667,66975.0,66968.0,0.07466252]
[1772943374020,0.10855165,66975.0,66968.0,0.07486252]
[1772943374218,0.25718667,66975.0,66968.0,0.07486252]
[1772943374446,0.22329102,66974.0,66968.0,0.07486252]
[1772943375351,0.22329102,66974.0,66968.0,0.07536402]
[1772943375485,0.10855165,66975.0,66968.0,0.07536402]
[1772943375689,0.22328877,66976.0,66968.0,0.07536402]
[1772943375889,0.14863502,66975.0,66968.0,0.07536402]
[1772943379566,0.22328987,66975.0,66968.0,0.07536402]
[1772943379794,0.10855099,66975.0,66968.0,0.07536402]
[1772943379973,0.25718601,66975.0,66968.0,0.07536402]
[1772943380200,0.10855099,66975.0,66968.0,0.07536402]
[1772943380404,0.25718601,66975.0,66968.0,0.07536402]
[1772943380529,0.10855099,66975.0,66968.0,0.07536402]
[1772943380728,0.25718601,66975.0,66968.0,0.07536402]
[1772943381080,0.10855099,66975.0,66968.0,0.07536402]
[1772943381288,0.25718601,66975.0,66968.0,0.07536402]
[1772943381489,0.10855099,66975.0,66968.0,0.07536402]
[1772943381662,0.25718601,66975.0,66968.0,0.07536402]
[1772943381866,0.10855099,66975.0,66968.0,0.07536402]
[1772943382063,0.25718601,66975.0,66968.0,0.07536402]
[1772943382429,0.10855099,66975.0,66968.0,0.07536402]
[1772943382594,0.25718601,66975.0,66968.0,0.07536402]
[1772943382808,0.10855099,66975.0,66968.0,0.07536402]
[1772943383145,0.25718601,66975.0,66968.0,0.07536402]
[1772943383330,0.10855099,66975.0,66968.0,0.07536402]
[1772943383496,0.25718601,66975.0,66968.0,0.07536402]
[1772943383669,0.10855099,66975.0,66968.0,0.07536402]
[1772943384011,0.25718601,66975.0,66968.0,0.07536402]
[1772943384213,0.10855099,66975.0,66968.0,0.07536402]
[1772943384415,0.25718601,66975.0,66968.0,0.07536402]
[1772943384659,0.10855099,66975.0,66968.0,0.07536402]
[1772943384832,0.25718601,66975.0,66968.0,0.07536402]
[1772943384984,0.10855099,66975.0,66968.0,0.07536402]
[1772943385185,0.25718601,66975.0,66968.0,0.07536402]
[1772943385534,0.10855099,66975.0,66968.0,0.07536402]
[1772943385838,0.25718601,66975.0,66968.0,0.07536402]
[1772943386033,0.10855099,66975.0,66968.0,0.07536402]
[1772943386247,0.25718601,66975.0,66968.0,0.07536402]
[1772943386457,0.10855099,66975.0,66968.0,0.07536402]
[1772943386661,0.25718601,66975.0,66968.0,0.07536402]
[1772943386864,0.10855099,66975.0,66968.0,0.07536402]
[1772943388827,0.14863502,66976.0,66968.0,0.07536402]
[1772943389333,0.07465325,66977.0,66969.0,0.1441223]
[1772943390364,0.07465325,66977.0,66969.0,0.1446238]
[1772943390564,0.07465325,66977.0,66969.0,0.1456238]
[1772943390731,0.00022001,66975.0,66969.0,0.1456238]
[1772943390935,0.00022001,66975.0,66970.0,0.07466029]
[1772943391334,0.00022001,66975.0,66970.0,0.07516179]
[1772943391757,0.07465325,66977.0,66970.0,0.07516179]
[1772943392183,0.07465108,66979.0,66970.0,0.07516179]
[1772943392388,0.07464914,66980.0,66971.0,0.15987585]
[1772943392766,0.07464292,66986.0,66973.0,0.15224004]
[1772943392946,0.0747898,66989.0,66976.0,0.01578404]
[1772943393147,0.0747898,66989.0,66977.0,0.15224004]
[1772943393347,0.0747898,66989.0,66977.0,0.15401474]
[1772943393816,0.0747898,66989.0,66977.0,0.1382307]
[1772943394217,0.0747898,66989.0,66978.0,0.07465137]
[1772943394413,0.0747898,66989.0,66978.0,0.07494607]
[1772943395016,0.0747898,66989.0,66978.0,0.22674123]
[1772943395215,0.00015,66989.0,66979.0,0.136456]
[1772943395534,0.00015,66989.0,66980.0,0.15179516]
[1772943396245,0.07463132,66996.0,66982.0,0.07464692]
[1772943396396,0.07463132,66996.0,66983.0,0.00148]
[1772943396937,0.10852746,66996.0,66983.0,0.00148]
[1772943397544,0.10852746,66996.0,66983.0,0.0017747]
[1772943398345,0.10852746,66996.0,66984.0,0.07464469]
[1772943398863,0.03013322,66995.0,66984.0,0.07464469]
[1772943399435,0.03013322,66995.0,66984.0,0.07493939]
[1772943400571,0.07463354,66994.0,66984.0,0.07493939]
[1772943404939,0.00022001,66997.0,66984.0,0.07493939]
[1772943405141,0.08037949,66998.0,66987.0,0.01300762]
[1772943405352,0.08037949,66998.0,66988.0,0.01448762]
[1772943405540,0.00575,66998.0,66988.0,0.01457552]
[1772943406143,0.08037939,66998.0,66988.0,0.01457552]
[1772943406544,0.08037939,66998.0,66988.0,0.01464135]
[1772943407280,0.00575,66998.0,66989.0,0.07463911]
[1772943407435,0.00575,66998.0,66989.0,0.07472701]
[1772943408250,0.00597001,66998.0,66989.0,0.07572701]
[1772943409003,0.00597001,66998.0,66989.0,0.07472701]
[1772943415492,0.0004,67000.0,66989.0,0.07472701]
[1772943415705,0.0748438,67003.0,66991.0,0.14772423]
[1772943416712,0.00022001,66998.0,66991.0,0.01135613]
[1772943416918,0.00022001,66998.0,66991.0,8.79e-05]
[1772943423432,0.0748438,67003.0,66991.0,0.07472479]
[1772943423433,0.07462476,67002.0,66991.0,0.07472479]
[1772943425013,0.07484477,67002.0,66991.0,0.07472479]
[1772943429352,0.00022001,67002.0,66991.0,0.21545192]
[1772943430770,0.00022001,67002.0,66991.0,0.07472479]
[1772943431827,0.00022001,67002.0,66992.0,0.00826154]
[1772943432004,0.00037001,67005.0,66994.0,0.00826154]
[1772943432162,0.00037001,67005.0,66995.0,0.14192487]
[1772943432783,0.00037001,67005.0,66995.0,0.14201277]
[1772943434015,0.00037001,67005.0,66996.0,0.07463132]
[1772943434208,0.00022001,67002.0,66996.0,0.07463132]
[1772943436726,0.00037001,67005.0,66996.0,0.07463132]
[1772943439669,0.02996148,67005.0,66996.0,0.07463132]
[1772943444064,0.29085449,67009.0,66996.0,0.07463132]
[1772943444065,1e-08,67014.0,66997.0,0.13855422]
[1772943444265,1e-08,67014.0,67000.0,0.00637089]
[1772943444485,0.00022001,67018.0,67002.0,0.13218333]
[1772943444683,0.00022001,67018.0,67003.0,0.00637089]
[1772943444890,0.00022001,67018.0,67001.0,0.00148]
[1772943444891,0.00022001,67018.0,67005.0,0.00701501]
[1772943447252,0.00022001,67018.0,67006.0,0.07462018]
[1772943447403,0.00022001,67018.0,67007.0,0.00148]
[1772943449127,0.00022001,67019.0,67007.0,0.00789887]
[1772943449307,0.00022001,67019.0,67008.0,0.07461795]
[1772943453441,0.02959147,67018.0,67008.0,0.07461795]
[1772943454389,0.02959147,67018.0,67009.0,0.00148]
[1772943455474,0.02999181,67018.0,67010.0,0.07461572]
[1772943459929,0.00022001,67019.0,67010.0,0.07461572]
[1772943460135,0.00033943,67019.0,67010.0,0.07461572]
[1772943460952,0.00022001,67026.0,67011.0,0.00466724]
[1772943461105,0.00022001,67026.0,67013.0,0.00466724]
[1772943461308,0.00022001,67026.0,67014.0,0.00614724]
[1772943464060,0.00022001,67026.0,67015.0,0.07461016]
[1772943464061,0.07481814,67026.0,67015.0,0.07461016]
[1772943464260,0.07481814,67026.0,67011.0,0.00040034]
[1772943464261,0.13619873,67022.0,67011.0,0.07501461]
[1772943464566,0.02817281,67019.0,67016.0,0.00148]
[1772943465662,0.02817281,67019.0,67011.0,0.07501461]
[1772943465877,0.02817281,67019.0,67017.0,0.00148]
[1772943468055,0.02817281,67019.0,67017.0,0.07608776]
[1772943469274,0.02839282,67019.0,67017.0,0.07608776]
[1772943470902,0.00022001,67019.0,67017.0,0.07608776]
[1772943471479,0.08096986,67025.0,67017.0,0.07608776]
[1772943472377,0.10914267,67025.0,67017.0,0.07608776]
[1772943472949,0.02817281,67024.0,67017.0,0.07608776]
[1772943475321,0.07460054,67024.0,67017.0,0.07608776]
[1772943475804,0.02817281,67023.0,67017.0,0.07608776]
[1772943484125,0.07460129,67023.0,67018.0,0.00148]
[1772943484324,0.02590124,67022.0,67018.0,0.00148]
[1772943484540,0.02590124,67022.0,67019.0,0.00148]
[1772943486650,0.07460253,67022.0,67019.0,0.00148]
[1772943486834,0.10050377,67022.0,67019.0,0.00148]
[1772943487039,0.02590124,67021.0,67019.0,0.00148]
[1772943489271,0.02590124,67022.0,67019.0,0.00148]
[1772943490024,0.02590124,67022.0,67018.0,0.00148]
[1772943490225,0.02590124,67021.0,67018.0,0.00148]
[1772943493323,0.02612125,67021.0,67018.0,0.00148]
[1772943493491,0.00022001,67021.0,67018.0,0.07608572]
[1772943495762,0.00022001,67024.0,67018.0,0.07608572]
[1772943495969,0.07482022,67024.0,67018.0,0.07608572]
[1772943496587,0.00022001,67024.0,67018.0,0.07608572]
[1772943500692,0.14934051,67030.0,67019.0,0.13818817]
[1772943500893,0.00022001,67030.0,67020.0,0.13818817]
[1772943501143,0.00022001,67030.0,67021.0,0.00051642]
[1772943501628,0.00022001,67030.0,67020.0,0.13818817]
[1772943502058,0.00022001,67030.0,67018.0,0.07608572]
[1772943502338,0.00022001,67030.0,67018.0,0.07628572]
[1772943502558,0.00022001,67024.0,67018.0,0.07628572]
[1772943502760,0.00022001,67024.0,67019.0,0.00031551]
[1772943502939,0.00022001,67030.0,67019.0,0.00031551]
[1772943505498,0.00022001,67030.0,67020.0,0.07460459]
[1772943505734,0.00022001,67038.0,67020.0,0.07460459]
[1772943505930,0.22253437,67048.0,67020.0,0.07460459]
[1772943505931,0.00148,67046.0,67024.0,0.02591875]
[1772943506130,0.07457599,67046.0,67028.0,0.02591875]
[1772943506302,0.07457599,67046.0,67030.0,0.02591875]
[1772943506678,0.07457599,67046.0,67032.0,0.02591875]
[1772943506889,0.0001239,67049.0,67032.0,0.02591875]
[1772943507060,0.0001239,67049.0,67034.0,0.02603044]
[1772943507061,0.07469646,67049.0,67034.0,0.02603044]
[1772943507301,0.09879617,67049.0,67034.0,0.02603044]
[1772943507634,0.09879617,67049.0,67035.0,0.0745879]
[1772943507833,0.02428932,67049.0,67035.0,0.0745879]
[1772943508037,0.00018961,67049.0,67035.0,0.0745879]
[1772943508254,0.00018961,67049.0,67038.0,0.13818817]
[1772943508477,0.07468947,67056.0,67039.0,0.00148]
[1772943508478,0.13071112,67054.0,67039.0,0.00148]
[1772943508740,0.13053472,67052.0,67039.0,0.00154571]
[1772943508871,0.02409971,67051.0,67039.0,0.00154571]
[1772943509691,0.02409971,67051.0,67040.0,0.07458233]
[1772943509892,0.00022001,67049.0,67040.0,0.07458233]
[1772943512983,0.00022001,67049.0,67038.0,0.07458381]
[1772943512984,0.13576371,67048.0,67041.0,0.00148]
[1772943513212,0.13576371,67048.0,67038.0,0.07458456]
[1772943513213,0.02409971,67047.0,67038.0,0.07458456]
[1772943513404,0.02409971,67047.0,67042.0,0.00148]
[1772943515201,0.02409971,67047.0,67041.0,0.07606091]
[1772943515400,0.02409971,67047.0,67041.0,0.00148]
[1772943515401,0.13576371,67046.0,67041.0,0.00148]
[1772943515632,0.02409971,67045.0,67041.0,0.00148]
[1772943515756,0.13576371,67045.0,67041.0,0.00148]
[1772943515955,0.07457483,67047.0,67041.0,0.00148]
[1772943516158,0.02409971,67046.0,67041.0,0.00148]
[1772943516357,0.02409971,67046.0,67039.0,0.07458284]
[1772943516582,0.02409971,67046.0,67040.0,0.00148]
[1772943517111,0.02409971,67046.0,67041.0,0.00148]
[1772943517895,0.07457621,67046.0,67037.0,3.83e-06]
[1772943518064,0.02409971,67045.0,67038.0,0.00148]
[1772943518560,0.02409971,67045.0,67039.0,0.00148]
[1772943518972,0.02409971,67045.0,67038.0,0.00148]
[1772943519381,0.02409971,67045.0,67037.0,0.07458904]
[1772943519584,0.02409971,67045.0,67038.0,0.00148]
[1772943519983,0.07457788,67044.0,67037.0,3.83e-06]
[1772943520175,0.07457788,67044.0,67038.0,0.00148]
[1772943520616,0.07457788,67044.0,67039.0,0.00148]
[1772943520823,0.02456895,67045.0,67039.0,0.00148]
[1772943520984,0.02456895,67045.0,67037.0,3.83e-06]
[1772943521180,0.02456895,67045.0,67038.0,0.00148]
[1772943521594,0.02456895,67045.0,67039.0,0.00148]
[1772943522417,0.07457788,67044.0,67037.0,3.83e-06]
[1772943522611,0.09914683,67044.0,67039.0,0.00148]
[1772943523490,0.09914683,67044.0,67037.0,0.00020383]
[1772943523654,0.02456895,67044.0,67039.0,0.00148]
[1772943523838,0.07457621,67046.0,67039.0,0.00148]
[1772943524227,0.001,67044.0,67039.0,0.00148]
[1772943524662,0.07557798,67044.0,67039.0,0.00148]
[1772943524846,0.10014693,67044.0,67039.0,0.00148]
[1772943525258,0.02556895,67044.0,67039.0,0.00148]
[1772943525426,0.02456895,67044.0,67039.0,0.00148]
[1772943525826,0.07457695,67045.0,67039.0,0.00148]
[1772943529331,0.07457566,67046.0,67039.0,0.0760634]
[1772943529717,0.07457566,67046.0,67039.0,0.0745834]
[1772943529910,0.07457566,67046.0,67039.0,0.0760634]
[1772943530121,0.07457566,67046.0,67039.0,0.00148]
[1772943530479,0.07457566,67046.0,67039.0,0.07606338]
[1772943530681,0.07457566,67046.0,67039.0,0.07458338]
[1772943530906,0.07457566,67046.0,67039.0,0.07606338]
[1772943531086,0.09914461,67046.0,67039.0,0.00148]
[1772943531281,0.09914461,67046.0,67039.0,0.00073399]
[1772943531689,0.09914461,67046.0,67038.0,0.07458412]
[1772943531893,0.09914461,67046.0,67039.0,0.00148]
[1772943535137,0.09914461,67046.0,67037.0,0.00020383]
[1772943535323,0.09914461,67046.0,67038.0,0.00148]
[1772943538428,0.00022001,67054.0,67042.0,0.14430854]
[1772943538661,0.1437031,67063.0,67040.0,0.14430854]
[1772943538662,0.07455809,67062.0,67040.0,0.14430854]
[1772943538860,0.14924235,67065.0,67044.0,0.14430854]
[1772943539146,0.13576371,67062.0,67045.0,0.00148]
[1772943539343,0.02456895,67059.0,67046.0,0.00148]
[1772943539570,0.02478896,67046.0,67040.0,0.00012002]
[1772943539801,0.02478896,67046.0,67041.0,0.00148]
[1772943540201,0.02478896,67046.0,67042.0,0.00148]
[1772943540566,0.00022001,67046.0,67043.0,0.074579]
[1772943540941,0.00022001,67053.0,67043.0,0.074579]
[1772943541178,0.07456479,67056.0,67046.0,0.0206304]
[1772943542668,0.07456321,67058.0,67047.0,0.07457455]
[1772943542833,0.07456321,67058.0,67048.0,0.00148]
[1772943544700,0.07456321,67058.0,67049.0,0.07457232]
[1772943545317,0.07455931,67061.0,67049.0,0.07457232]
[1772943545318,0.07455942,67061.0,67050.0,0.02195077]
[1772943546618,0.07455847,67062.0,67051.0,0.0745701]
[1772943546934,0.07455847,67062.0,67052.0,0.00148]
[1772943547237,0.07455847,67062.0,67053.0,0.00148]
[1772943547647,0.07455847,67062.0,67050.0,0.02195077]
[1772943547822,0.02156622,67059.0,67051.0,0.00148]
[1772943548016,0.02156622,67055.0,67044.0,0.07457788]
[1772943548204,0.02185395,67053.0,67045.0,0.00148]
[1772943548398,0.02185395,67053.0,67046.0,0.00148]
[1772943548619,0.09642206,67053.0,67047.0,0.07457455]
[1772943549145,0.09642206,67053.0,67040.0,0.00012002]
[1772943549146,0.07456811,67053.0,67040.0,0.00012002]
[1772943549300,0.02185395,67050.0,67040.0,0.07470198]
[1772943549515,0.07456811,67053.0,67041.0,0.02253791]
[1772943550691,0.07456787,67054.0,67042.0,0.07458011]
[1772943551138,0.09642182,67054.0,67042.0,0.07458011]
[1772943553183,0.09642182,67054.0,67043.0,0.00148]
[1772943553543,0.09642182,67054.0,67042.0,0.07458011]
[1772943553738,0.09642182,67054.0,67043.0,0.00148]
[1772943555084,0.07456343,67057.0,67045.0,0.02253791]
[1772943556276,0.09641738,67057.0,67045.0,0.02253791]
[1772943556476,0.07456343,67057.0,67044.0,0.07457788]
[1772943556672,0.02185395,67056.0,67044.0,0.07457788]
[1772943557072,0.07456565,67055.0,67045.0,0.0002]
[1772943559668,0.07456565,67055.0,67046.0,0.00148]
[1772943561238,0.07456565,67055.0,67047.0,0.07457455]
[1772943562535,0.07456565,67055.0,67047.0,0.09711246]
[1772943563280,0.07478315,67058.0,67047.0,0.09711246]
[1772943563511,0.07478315,67058.0,67048.0,0.02253791]
[1772943563926,0.07478256,67058.0,67048.0,0.02253791]
[1772943564720,0.00022001,67058.0,67048.0,0.02253791]
[1772943564902,0.07455958,67061.0,67048.0,0.02253791]
[1772943565067,0.07455958,67061.0,67049.0,0.02253791]
[1772943565463,0.07455786,67063.0,67050.0,0.07457121]
[1772943565903,0.00022001,67058.0,67050.0,0.07457121]
[1772943568599,0.00022001,67058.0,67050.0,0.09710912]
[1772943569242,0.00037801,67058.0,67050.0,0.09710912]
[1772943569397,0.0749405,67058.0,67050.0,0.09710912]
[1772943571022,0.07455884,67062.0,67051.0,0.02253791]
[1772943571245,0.07455786,67063.0,67052.0,0.07604899]
[1772943574060,0.00022001,67058.0,67052.0,0.07604899]
[1772943575638,0.00022001,67058.0,67052.0,0.0985869]
[1772943578108,0.02207396,67065.0,67053.0,0.02253791]
[1772943578109,0.00022001,67065.0,67053.0,0.02253791]
[1772943578304,0.07477464,67065.0,67053.0,0.02083131]
[1772943578503,0.07477464,67065.0,67054.0,0.00148]
[1772943578745,0.07477464,67065.0,67054.0,0.02231131]
[1772943581279,0.07477464,67065.0,67055.0,0.07456565]
[1772943582607,0.0001556,67067.0,67055.0,0.07456565]
[1772943582803,0.07470822,67067.0,67055.0,0.09539696]
[1772943583007,0.07470822,67067.0,67055.0,0.07456565]
[1772943583308,0.0001556,67067.0,67055.0,0.07456565]
[1772943583728,0.0001556,67067.0,67056.0,0.02083131]
[1772943585770,0.0001556,67067.0,67058.0,0.02083131]
[1772943585971,0.0001556,67067.0,67059.0,0.02231131]
[1772943586586,0.0005556,67075.0,67061.0,0.02083131]
[1772943586807,0.07509923,67075.0,67061.0,0.02083131]
[1772943587284,0.07509923,67075.0,67063.0,0.02083131]
[1772943587481,0.07509923,67075.0,67064.0,0.00148]
[1772943587884,0.07521931,67075.0,67065.0,0.07455453]
[1772943590735,0.0201413,67073.0,67065.0,0.07455453]
[1772943591106,0.0201413,67073.0,67066.0,0.00148]
[1772943592312,0.0201413,67073.0,67067.0,0.07455231]
[1772943594348,0.09468735,67073.0,67068.0,0.00148]
[1772943594550,0.0201413,67072.0,67068.0,0.00148]
[1772943595453,0.07454605,67073.0,67068.0,0.00148]
[1772943595655,0.07454531,67074.0,67068.0,0.00148]
[1772943598420,0.07454531,67074.0,67068.0,0.07603099]
[1772943599381,0.07476532,67074.0,67068.0,0.07603099]
[1772943599905,0.09490662,67074.0,67068.0,0.07603099]
[1772943600506,0.09490662,67074.0,67068.0,0.00148]
[1772943601377,0.07476532,67074.0,67068.0,0.00148]
[1772943601594,0.07454043,67078.0,67068.0,0.00148]
[1772943601807,0.07454043,67078.0,67068.0,0.02238468]
[1772943602416,0.07454043,67078.0,67069.0,0.07455009]
[1772943603405,0.16965109,67082.0,67072.0,0.0207846]
[1772943603406,0.00022001,67082.0,67072.0,0.0207846]
[1772943604534,0.07475607,67082.0,67073.0,0.07454564]
[1772943604780,0.02064349,67081.0,67074.0,0.00148]
[1772943604971,0.02064349,67081.0,67073.0,0.07454564]
[1772943604972,0.02064349,67081.0,67075.0,0.00148]
[1772943605555,0.02064349,67081.0,67075.0,0.001578]
[1772943606069,0.01583449,67081.0,67075.0,0.001578]
[1772943607775,0.09518135,67080.0,67076.0,0.00148]
[1772943607980,0.07453786,67080.0,67067.0,0.0001856]
[1772943608143,0.15837544,67077.0,67067.0,0.07473763]
[1772943608344,0.15832131,67077.0,67068.0,0.00148]
[1772943608757,0.15832131,67077.0,67069.0,0.00148]
[1772943608993,0.02058936,67077.0,67069.0,0.00148]
[1772943609770,0.07465788,67080.0,67070.0,0.07454897]
[1772943612111,0.07465788,67080.0,67071.0,0.00148]
[1772943612738,0.09524724,67080.0,67071.0,0.00148]
[1772943614391,0.09524724,67080.0,67072.0,0.07454675]
[1772943616945,0.09524724,67080.0,67073.0,0.00148]
[1772943618276,0.07465788,67080.0,67073.0,0.00148]
[1772943627121,0.07465788,67080.0,67073.0,0.00168]
[1772943631363,0.07465788,67080.0,67070.0,0.07454879]
[1772943631364,0.07465788,67080.0,67071.0,0.00148]
[1772943631570,0.07465788,67080.0,67072.0,0.00148]
[1772943634989,0.07465788,67080.0,67072.0,0.02169484]
[1772943635137,0.0745329,67085.0,67073.0,0.02021484]
[1772943635356,0.0745329,67085.0,67073.0,0.02033486]
[1772943635549,0.0745329,67085.0,67074.0,0.00148]
[1772943636640,0.00022001,67080.0,67075.0,0.00148]
[1772943637001,0.00022001,67080.0,67075.0,0.07602322]
[1772943638384,0.00022001,67087.0,67075.0,0.07602322]
[1772943638590,0.07452192,67095.0,67078.0,0.13041734]
[1772943638765,0.07452192,67095.0,67079.0,0.02136679]
[1772943639261,0.07452192,67095.0,67081.0,0.02136679]
[1772943639478,0.07452192,67095.0,67082.0,0.00148]
[1772943640050,0.09681234,67095.0,67082.0,0.00148]
[1772943640451,0.09681234,67095.0,67083.0,0.00148]
[1772943641842,0.09681234,67095.0,67084.0,0.07453342]
[1772943643816,0.07474193,67095.0,67084.0,0.07453342]
[1772943643996,0.07474193,67095.0,67086.0,0.07453119]
[1772943647197,0.13050121,67094.0,67074.0,0.02136679]
[1772943647397,0.13050121,67089.0,67075.0,0.00148]
[1772943647622,0.02229042,67088.0,67075.0,0.00148]
[1772943647935,0.02229042,67088.0,67076.0,0.00148]
[1772943648301,0.02229042,67088.0,67074.0,0.09591132]
[1772943648497,0.02229042,67088.0,67075.0,0.00148]
[1772943648955,0.02229042,67088.0,67076.0,0.00148]
[1772943649108,0.02229042,67088.0,67077.0,0.00148]
[1772943649316,0.07453008,67087.0,67078.0,0.07454008]
[1772943649744,0.07453008,67087.0,67079.0,0.00148]
[1772943650118,0.0968205,67087.0,67079.0,0.00148]
[1772943650328,0.0968205,67087.0,67078.0,0.07454008]
[1772943650533,0.0968205,67087.0,67080.0,0.00148]
[1772943651066,0.0968205,67087.0,67081.0,0.00148]
[1772943651220,0.09704051,67087.0,67081.0,0.00148]
[1772943651418,0.09704051,67087.0,67082.0,0.00148]
[1772943651622,0.02229042,67086.0,67082.0,0.00148]
[1772943651818,0.02229042,67086.0,67076.0,0.07454142]
[1772943652032,0.13050121,67085.0,67070.0,0.07454878]
[1772943652237,0.02229042,67082.0,67072.0,0.07474596]
[1772943652450,0.02229042,67082.0,67074.0,0.00148]
[1772943652854,0.02229042,67082.0,67073.0,0.07486538]
[1772943652855,0.02229042,67086.0,67075.0,0.00148]
[1772943653355,0.0745323,67085.0,67076.0,0.00148]
[1772943654093,0.0745323,67085.0,67077.0,0.00148]
[1772943655790,0.0745323,67085.0,67077.0,0.07602113]
[1772943658888,0.0745323,67085.0,67077.0,0.00148]
[1772943660468,0.07475231,67085.0,67077.0,0.00148]
[1772943660824,0.13050121,67082.0,67072.0,0.00035]
[1772943661024,0.02229042,67079.0,67073.0,0.00148]
[1772943661443,0.02229042,67079.0,67074.0,0.00148]
[1772943663567,0.07454008,67078.0,67072.0,0.00035]
[1772943663769,0.07454008,67078.0,67074.0,0.00148]
[1772943665242,0.09500917,67078.0,67064.0,0.09551647]
[1772943665447,0.02046909,67077.0,67067.0,0.00148]
[1772943665654,0.02046909,67077.0,67068.0,0.00148]
[1772943665655,0.07454231,67076.0,67068.0,0.00148]
[1772943665879,0.07454231,67076.0,67067.0,0.07455192]
[1772943666054,0.07454231,67076.0,67069.0,0.00148]
[1772943666272,0.07454231,67076.0,67067.0,0.07455192]
[1772943666431,0.0950114,67076.0,67068.0,0.00148]
[1772943666834,0.0950114,67076.0,67069.0,0.00148]
[1772943667208,0.0950114,67076.0,67066.0,0.07487522]
[1772943667416,0.0950114,67076.0,67067.0,0.00148]
[1772943667833,0.0950114,67076.0,67068.0,0.0760312]
[1772943668113,0.0950114,67076.0,67074.0,0.0002]
[1772943668845,0.07454231,67076.0,67074.0,0.0002]
[1772943669357,0.0745402,67078.0,67074.0,0.0002]
[1772943669540,0.001,67076.0,67074.0,0.0002]
[1772943669930,0.07554271,67076.0,67074.0,0.0002]
[1772943670741,0.07454271,67076.0,67074.0,0.0002]
[1772943671249,0.07554271,67076.0,67074.0,0.0002]
[1772943673858,0.07454271,67076.0,67074.0,0.0002]
[1772943674301,0.02042061,67081.0,67074.0,0.0002]
[1772943676275,0.07453786,67080.0,67074.0,0.0002]
[1772943676895,0.09495847,67080.0,67074.0,0.0002]
[1772943677120,0.02042061,67078.0,67074.0,0.0002]
[1772943678406,0.12336015,67076.0,67066.0,0.0001226]
[1772943678596,0.12336015,67076.0,67060.0,0.07475952]
[1772943678597,0.02042061,67075.0,67067.0,0.00148]
[1772943678794,0.02042061,67075.0,67068.0,0.00148]
[1772943679030,0.02042061,67075.0,67061.0,0.07455898]
[1772943679229,0.02042061,67075.0,67062.0,0.00148]
[1772943679612,0.02042061,67075.0,67061.0,0.07455898]
[1772943679613,0.02042061,67075.0,67063.0,0.00148]
[1772943680216,0.02042061,67075.0,67064.0,0.00148]
[1772943680657,0.02042061,67075.0,67060.0,0.07475898]
[1772943680658,0.07454453,67074.0,67060.0,0.0002]
[1772943680865,0.02042061,67073.0,67060.0,0.0002]
[1772943681038,0.12336015,67073.0,67061.0,0.00148]
[1772943681210,0.02042061,67072.0,67061.0,0.00148]
[1772943681414,0.02042061,67072.0,67060.0,0.0002]
[1772943681615,0.02042061,67072.0,67061.0,0.00148]
[1772943681944,0.02042061,67072.0,67060.0,0.0002]
[1772943682143,0.02042061,67072.0,67061.0,0.00148]
[1772943682735,0.07454786,67071.0,67062.0,0.00148]
[1772943683155,0.07454786,67071.0,67060.0,0.07475977]
[1772943683330,0.07454786,67071.0,67063.0,0.00148]
[1772943683670,0.07454786,67071.0,67060.0,0.07475977]
[1772943683884,0.07454786,67071.0,67060.0,0.0002]
[1772943684107,0.12336015,67066.0,67052.0,0.00595]
[1772943684253,0.04443774,67070.0,67053.0,0.0016026]
[1772943684254,0.02042061,67063.0,67053.0,0.0016026]
[1772943684452,0.02042061,67063.0,67053.0,0.0001226]
[1772943684672,0.02042061,67063.0,67052.0,0.00148]
[1772943684673,0.02042061,67061.0,67052.0,0.00148]
[1772943684875,0.02042061,67059.0,67052.0,0.00148]
[1772943685343,0.02042061,67059.0,67050.0,0.07497099]
[1772943685533,0.02042061,67059.0,67056.0,0.0002]
[1772943685712,0.07456009,67060.0,67056.0,0.0002]
[1772943686297,0.02042061,67059.0,67056.0,0.0002]
[1772943687189,0.07456009,67060.0,67056.0,0.0002]